bitfinex/quotes_ETHUSD_20250908
["timestamp","ask_amount","ask_price","bid_price","bid_amount"]
[1757303763319,9.7563919,4319.4,4319.3,0.002]
[1757303764513,9.2687919,4319.4,4319.3,0.002]
[1757303764718,8.5105919,4319.4,4319.3,0.002]
[1757303765316,8.7971919,4319.4,4319.3,0.002]
[1757303765528,9.2687919,4319.4,4319.3,0.002]
[1757303765739,8.5105919,4319.4,4319.3,0.002]
[1757303765931,8.7971919,4319.4,4319.3,0.002]
[1757303766133,8.98765186,4319.4,4319.3,0.002]
[1757303766342,8.70105186,4319.4,4319.3,0.002]
[1757303766655,5.13326636,4319.4,4319.3,0.8014]
[1757303766853,5.13326636,4319.4,4319.3,1.2343]
[1757303767352,4.63483996,4319.4,4319.3,1.2343]
[1757303768451,4.63483996,4319.4,4319.3,0.3149]
[1757303769431,5.13326636,4319.4,4319.3,0.3149]
[1757303769664,4.63483996,4319.4,4319.3,0.3149]
[1757303772549,7.44840272,4319.4,4319.3,0.3149]
[1757303772871,9.14011903,4319.4,4319.3,0.002]
[1757303774084,11.17791903,4319.4,4319.3,0.002]
[1757303776382,12.95691903,4319.4,4319.3,0.002]
[1757303779769,20.01691903,4319.4,4319.3,0.002]
[1757303780694,20.01720715,4319.4,4319.3,0.002]
[1757303780907,23.01720715,4319.4,4319.3,0.002]
[1757303782262,25.45720715,4319.4,4319.3,0.002]
[1757303783865,25.45720715,4319.4,4319.1,0.022]
[1757303783866,5.54724356,4319.2,4319.1,0.022]
[1757303784083,31.7017719,4319.2,4319.1,0.022]
[1757303784276,32.24123723,4319.2,4319.1,0.022]
[1757303784575,24.72491923,4319.2,4319.1,0.022]
[1757303785187,31.78491923,4319.2,4319.1,0.022]
[1757303785384,33.4412925,4319.2,4319.1,0.022]
[1757303785869,33.61208939,4319.2,4319.1,0.022]
[1757303787223,36.61208939,4319.2,4319.1,0.022]
[1757303787498,35.36348507,4319.2,4319.1,0.022]
[1757303789317,35.36348507,4319.2,4317.9,0.4652]
[1757303789318,2.31555254,4318.7,4316.8,0.4902]
[1757303789500,6.232,4317.2,4316.8,1e-08]
[1757303789701,11.05890195,4316.9,4316.8,1e-08]
[1757303789875,48.06813245,4316.9,4316.8,1e-08]
[1757303790215,30.44849732,4316.9,4316.8,1e-08]
[1757303790580,30.56518846,4316.9,4316.8,1e-08]
[1757303791705,24.47497546,4316.9,4316.8,1e-08]
[1757303791874,24.64810342,4316.9,4316.8,1e-08]
[1757303792075,22.20810342,4316.9,4316.8,1e-08]
[1757303794778,22.09141228,4316.9,4316.8,1e-08]
[1757303795491,22.20916561,4316.9,4316.8,1e-08]
[1757303796092,22.0790863,4316.9,4316.8,1e-08]
[1757303796482,17.12627097,4316.9,4316.8,1e-08]
[1757303796809,17.24042099,4316.9,4316.8,1e-08]
[1757303797180,17.69802099,4316.9,4316.8,1e-08]
[1757303797711,17.12627097,4316.9,4316.8,1e-08]
[1757303798617,16.92534639,4316.9,4316.8,1e-08]
[1757303798915,16.81257097,4316.9,4316.8,1e-08]
[1757303799226,17.24387483,4316.9,4316.8,1e-08]
[1757303799579,17.70147483,4316.9,4316.8,1e-08]
[1757303799804,17.58387097,4316.9,4316.8,0.00200001]
[1757303800005,17.5827822,4316.9,4316.8,0.00200001]
[1757303800189,48.30510963,4316.9,4316.8,0.00200001]
[1757303800398,34.08780529,4316.9,4316.8,0.00200001]
[1757303800711,17.25432429,4316.9,4316.8,0.00200001]
[1757303801007,17.37053044,4316.9,4316.8,0.00200001]
[1757303801212,20.61042944,4316.9,4316.8,0.00200001]
[1757303801514,21.08882944,4316.9,4316.8,0.00200001]
[1757303803717,20.61042944,4316.9,4316.8,0.00200001]
[1757303804128,17.37053044,4316.9,4316.8,0.00200001]
[1757303804484,19.41072944,4316.9,4316.8,0.00200001]
[1757303804944,19.86832944,4316.9,4316.8,0.00200001]
[1757303805118,20.34672944,4316.9,4316.8,0.00200001]
[1757303807796,47.19609444,4316.9,4316.8,0.00200001]
[1757303808626,51.83281929,4316.9,4316.8,0.00200001]
[1757303808927,55.97555238,4316.9,4316.8,0.00200001]
[1757303809231,55.97555238,4316.9,4316.3,0.002]
[1757303809232,3.10874543,4316.4,4316.3,0.002]
[1757303809433,16.02983543,4316.4,4316.3,0.002]
[1757303809636,17.95928949,4316.4,4316.3,0.002]
[1757303810226,17.48088949,4316.4,4316.3,0.002]
[1757303810597,16.70958949,4316.4,4316.3,0.002]
[1757303811125,17.02328949,4316.4,4316.3,0.002]
[1757303811653,16.70958949,4316.4,4316.3,0.002]
[1757303812249,17.48088949,4316.4,4316.3,0.002]
[1757303812461,3.10885278,4316.2,4316.1,1e-08]
[1757303812623,11.60096409,4316.2,4316.1,1e-08]
[1757303812822,12.27823995,4316.2,4316.1,1e-08]
[1757303814541,12.59003995,4316.2,4316.1,1e-08]
[1757303815846,25.63507655,4316.2,4316.1,1e-08]
[1757303816045,26.59181586,4316.2,4316.1,1e-08]
[1757303816350,10.74568499,4316.0,4315.9,0.002]
[1757303816550,25.01542388,4316.0,4315.9,0.002]
[1757303816852,25.49961961,4316.0,4315.9,0.002]
[1757303817548,26.41891961,4316.0,4315.9,0.002]
[1757303818320,26.41891961,4316.0,4315.8,0.025]
[1757303818321,6.10901383,4315.9,4315.8,0.025]
[1757303818521,26.06730475,4315.9,4315.8,0.025]
[1757303818854,23.61867744,4315.9,4315.8,0.025]
[1757303819154,22.62643344,4315.9,4315.8,0.025]
[1757303819751,25.82072044,4315.9,4315.8,0.025]
[1757303819979,20.99468144,4315.9,4315.8,0.025]
[1757303820155,21.45328144,4315.9,4315.8,0.025]
[1757303820353,3.1091212,4315.7,4315.6,0.002]
[1757303820526,14.78158418,4315.7,4315.6,0.002]
[1757303820722,14.94773206,4315.7,4315.6,0.3082]
[1757303820949,13.69736588,4315.7,4315.6,1.2556]
[1757303821123,14.94773206,4315.7,4315.6,0.7949]
[1757303821457,20.75736588,4315.7,4315.6,0.3082]
[1757303822057,20.75736588,4315.7,4315.6,1.2556]
[1757303822422,11.39776301,4315.7,4315.6,1.2556]
[1757303822629,12.96364181,4315.7,4315.6,1.2556]
[1757303822928,15.28076301,4315.7,4315.6,1.2556]
[1757303823719,12.96364181,4315.7,4315.6,1.2556]
[1757303824121,12.96364181,4315.7,4315.6,1.10482116]
[1757303824425,12.17164181,4315.7,4315.6,1.10482116]
[1757303824869,12.17164181,4315.7,4315.6,0.64412116]
[1757303825034,16.62306249,4315.7,4315.6,0.15742116]
[1757303827345,3.10933599,4315.3,4315.2,0.4887]
[1757303827676,9.98509451,4315.3,4315.2,0.4887]
[1757303827969,9.98509451,4315.3,4315.2,0.7949]
[1757303828752,9.98509451,4315.3,4315.2,1.2473]
[1757303829073,7.66775852,4315.3,4315.2,1.2473]
[1757303829235,9.98509451,4315.3,4315.2,0.3082]
[1757303829574,8.48340437,4315.3,4315.2,0.3082]
[1757303829759,8.48340437,4315.3,4315.2,0.7949]
[1757303829993,8.48340437,4315.3,4315.2,1.2473]
[1757303830573,9.98509451,4315.3,4315.2,0.3082]
[1757303832055,9.98509451,4315.3,4315.2,0.002]
[1757303832772,10.29689451,4315.3,4315.2,0.002]
[1757303833139,10.38972099,4315.3,4315.2,0.002]
[1757303833491,10.39006149,4315.3,4315.2,0.002]
[1757303833778,12.62892434,4315.3,4315.2,0.002]
[1757303834343,11.85852434,4315.3,4315.2,0.002]
[1757303835180,12.17032434,4315.3,4315.2,0.002]
[1757303835376,12.62892434,4315.3,4315.2,0.002]
[1757303835962,20.15912434,4315.3,4315.2,0.002]
[1757303836851,20.15915345,4315.3,4315.2,0.002]
[1757303838350,28.64878579,4315.3,4315.2,0.002]
[1757303838557,29.89915197,4315.3,4315.2,0.002]
[1757303839386,6.10938969,4315.2,4315.1,0.022]
[1757303839539,9.9103612,4315.2,4315.1,0.022]
[1757303839894,10.82949622,4315.2,4315.1,0.022]
[1757303841180,10.35929622,4315.2,4315.1,0.022]
[1757303841782,10.82949622,4315.2,4315.1,0.022]
[1757303841979,10.35929622,4315.2,4315.1,0.022]
[1757303842383,9.58889622,4315.2,4315.1,0.022]
[1757303842747,9.90069622,4315.2,4315.1,0.022]
[1757303843284,10.33419622,4315.2,4315.1,0.022]
[1757303844579,10.33404786,4315.2,4315.1,0.022]
[1757303846267,9.58874786,4315.2,4315.1,0.3136]
[1757303846468,13.47174786,4315.2,4315.1,0.3136]
[1757303846664,3.1094971,4315.0,4314.9,0.499]
[1757303846842,7.55707297,4315.0,4314.9,0.499]
[1757303847047,7.55707297,4315.0,4314.9,0.7563]
[1757303847048,8.19876661,4315.0,4314.9,0.7563]
[1757303847280,9.02016858,4315.0,4314.9,0.2573]
[1757303847448,9.51916858,4315.0,4314.9,0.2573]
[1757303851608,3.10955081,4314.9,4314.8,0.025]
[1757303851809,4.72096599,4314.9,4314.8,0.025]
[1757303851987,4.4268164,4314.9,4314.8,0.025]
[1757303852182,6.09847874,4314.9,4314.8,0.025]
[1757303852382,6.83607874,4314.9,4314.8,0.025]
[1757303853778,6.83607874,4314.9,4314.8,0.027]
[1757303854002,6.09847874,4314.9,4314.8,0.027]
[1757303854323,2.10926559,4314.9,4314.8,0.7833]
[1757303854489,1.61112628,4314.9,4314.8,0.7833]
[1757303854689,0.81912628,4314.9,4314.8,0.7833]
[1757303854915,4.70209053,4314.9,4314.8,0.9441]
[1757303855078,4.57190036,4314.9,4314.8,0.9441]
[1757303855413,4.70210586,4314.9,4314.8,0.9441]
[1757303855616,0.68890036,4314.9,4314.8,0.9441]
[1757303855792,4.13755041,4314.9,4314.8,3.26170452]
[1757303855991,4.57190036,4314.9,4314.8,0.9441]
[1757303856185,4.45670036,4314.9,4314.8,3.26170452]
[1757303856807,4.45670036,4314.9,4314.8,0.9441]
[1757303857118,4.45670036,4314.9,4314.8,3.26170452]
[1757303857822,4.45670036,4314.9,4314.8,0.7833]
[1757303857978,4.45670036,4314.9,4314.8,0.9441]
[1757303858387,4.45670036,4314.9,4314.8,3.26170452]
[1757303859073,4.45670036,4314.9,4314.8,0.9441]
[1757303859512,4.45670036,4314.9,4314.8,0.7833]
[1757303860321,4.45639585,4314.9,4314.8,0.7833]
[1757303861890,4.45639585,4314.9,4314.8,3.26170452]
[1757303862725,4.57159585,4314.9,4314.8,3.26170452]
[1757303864494,4.57159585,4314.9,4314.8,0.9441]
[1757303864696,4.57159585,4314.9,4314.8,0.7833]
[1757303866694,4.13755041,4314.9,4314.8,0.7833]
[1757303866911,4.13755041,4314.9,4314.8,3.10090452]
[1757303867541,4.13755041,4314.9,4314.8,3.26170452]
[1757303867826,4.13755041,4314.9,4314.8,3.10090452]
[1757303868014,4.13755041,4314.9,4314.8,0.7833]
[1757303868208,4.13755041,4314.9,4314.8,0.2843]
[1757303868731,4.13755041,4314.9,4314.8,0.027]
[1757303869130,5.19375961,4314.9,4314.8,0.027]
[1757303869636,8.55251519,4314.9,4314.8,0.027]
[1757303869927,10.05957836,4314.9,4314.8,0.027]
[1757303871534,10.18975189,4314.9,4314.8,0.027]
[1757303876441,7.87220108,4314.9,4314.8,0.027]
[1757303876937,7.41130108,4314.9,4314.8,0.027]
[1757303877111,6.97780108,4314.9,4314.8,0.027]
[1757303877317,6.67370108,4314.9,4314.8,0.027]
[1757303877638,6.67270108,4314.9,4314.8,0.027]
[1757303877944,9.77935189,4314.9,4314.8,0.027]
[1757303878942,9.30495189,4314.9,4314.8,0.027]
[1757303879151,8.99025189,4314.9,4314.8,0.027]
[1757303879307,6.67270108,4314.9,4314.8,0.027]
[1757303879509,7.14710108,4314.9,4314.8,0.027]
[1757303880137,1.86852755,4314.9,4314.8,0.027]
[1757303880337,4.45517887,4314.9,4314.8,0.027]
[1757303880540,4.45532075,4314.9,4314.8,0.027]
[1757303881441,5.24442075,4314.9,4314.8,0.027]
[1757303881638,7.56197156,4314.9,4314.8,0.027]
[1757303881943,8.53691087,4314.9,4314.8,0.027]
[1757303882131,8.66717224,4314.9,4314.8,0.027]
[1757303882332,8.66717577,4314.9,4314.8,0.027]
[1757303882566,6.34962496,4314.9,4314.8,0.027]
[1757303882933,5.87282496,4314.9,4314.8,0.027]
[1757303883609,5.37468565,4314.9,4314.8,0.027]
[1757303883810,6.74892148,4314.9,4314.8,0.027]
[1757303884217,9.06647229,4314.9,4314.8,0.027]
[1757303884411,6.74892148,4314.9,4314.8,0.027]
[1757303885049,9.06647229,4314.9,4314.8,0.027]
[1757303885225,9.54327229,4314.9,4314.8,0.027]
[1757303886923,9.54368953,4314.9,4314.8,0.027]
[1757303888454,10.33568953,4314.9,4314.8,0.027]
[1757303890437,6.22480452,4314.8,4314.7,0.002]
[1757303890745,16.61550896,4314.8,4314.7,0.002]
[1757303890952,2.31781939,4314.4,4314.1,0.02]
[1757303891137,0.792,4313.9,4312.8,0.025]
[1757303891330,10.8704452,4313.9,4312.8,0.025]
[1757303891688,12.31978451,4313.9,4312.8,0.025]
[1757303891988,14.33252654,4313.9,4312.8,0.025]
[1757303893456,14.50980635,4313.9,4312.8,0.025]
[1757303894174,14.50980635,4313.9,4313.8,1e-08]
[1757303895977,35.47017844,4313.9,4313.8,1e-08]
[1757303898061,6.11046424,4313.2,4312.8,0.025]
[1757303898266,27.62323524,4313.2,4312.8,0.025]
[1757303898462,29.39888155,4313.2,4312.8,0.025]
[1757303899650,29.55456646,4313.2,4312.8,0.025]
[1757303900452,28.71704327,4313.2,4313.1,1e-08]
[1757303900656,29.0263442,4313.2,4313.1,1e-08]
[1757303901457,29.0263442,4313.2,4312.1,0.02]
[1757303901458,0.792,4313.0,4312.1,0.02]
[1757303901656,10.76311105,4312.2,4312.1,0.02]
[1757303901978,17.32472787,4312.2,4312.1,0.02]
[1757303902278,18.27592787,4312.2,4312.1,0.02]
[1757303902780,12.35891872,4312.2,4312.1,0.02]
[1757303903253,17.01102787,4312.2,4312.1,0.02]
[1757303903453,19.74983584,4312.2,4312.1,0.02]
[1757303903658,20.04863584,4312.2,4312.1,0.02]
[1757303904782,19.74983584,4312.2,4312.1,0.02]
[1757303905111,19.27893584,4312.2,4312.1,0.02]
[1757303905249,15.39593584,4312.2,4312.1,0.02]
[1757303905449,19.27893584,4312.2,4312.1,0.02]
[1757303906068,12.35891872,4312.2,4312.1,0.7381]
[1757303906389,0.792,4311.9,4311.8,0.025]
[1757303906682,4.80651202,4311.9,4311.8,0.025]
[1757303906862,7.12567526,4311.9,4311.8,0.025]
[1757303907260,0.13151202,4311.9,4311.8,0.025]
[1757303907489,4.01451202,4311.9,4311.8,0.025]
[1757303907861,4.01451202,4311.9,4311.8,0.25943735]
[1757303908182,4.01451202,4311.9,4311.8,0.025]
[1757303908383,4.01451202,4311.9,4311.8,0.2875]
[1757303908584,0.24671202,4311.9,4311.8,2.60671703]
[1757303908885,4.12971202,4311.9,4311.8,2.60671703]
[1757303909789,0.24671202,4311.9,4311.8,2.60671703]
[1757303909988,4.12971202,4311.9,4311.8,2.60671703]
[1757303910153,4.12971202,4311.9,4311.8,3.56452961]
[1757303910793,4.01451202,4311.9,4311.8,3.56452961]
[1757303911093,4.01451202,4311.9,4311.8,3.67972961]
[1757303912610,1e-08,4311.9,4311.8,3.67972961]
[1757303917619,1e-08,4311.9,4311.8,8.33183876]
[1757303923915,1e-08,4311.9,4311.8,11.33183876]
[1757303924686,1e-08,4311.9,4311.8,15.98394791]
[1757303926521,1e-08,4311.9,4311.8,11.33183876]
[1757303927118,1e-08,4311.9,4311.8,15.21383876]
[1757303927322,1e-08,4311.9,4311.8,15.21583876]
[1757303927815,0.00100001,4311.9,4311.8,19.86794791]
[1757303930390,0.001,4312.4,4312.3,2.31894812]
[1757303930585,0.001,4312.4,4312.3,14.64004445]
[1757303930794,0.001,4312.4,4312.3,14.99455497]
[1757303931318,0.001,4312.4,4312.3,15.1077478]
[1757303931523,0.12339129,4313.0,4312.9,2.31862551]
[1757303931823,0.12339129,4313.0,4312.9,10.85273466]
[1757303932021,0.12339129,4313.0,4312.9,11.22637503]
[1757303933822,1.34559129,4313.0,4312.9,7.34437503]
[1757303933998,1.34559129,4313.0,4312.9,7.08593466]
[1757303934193,1.34559129,4313.0,4311.8,0.027]
[1757303934397,1.34559129,4313.0,4312.1,2.31904954]
[1757303934725,0.792,4312.8,4312.0,0.4709]
[1757303934900,0.792,4312.6,4311.8,0.027]
[1757303935101,0.3143,4311.9,4311.8,0.027]
[1757303935624,1.2222,4311.9,4311.8,2.34621703]
[1757303935992,1.2222,4311.9,4311.8,0.027]
[1757303936630,1.2222,4311.9,4311.8,2.34621703]
[1757303936823,1.2222,4311.9,4311.8,0.027]
[1757303937209,1.2222,4311.9,4311.8,2.34621703]
[1757303937605,1.2222,4311.9,4311.8,0.027]
[1757303938337,1.2222,4311.9,4311.8,2.34621703]
[1757303940141,1.2222,4311.9,4311.8,0.027]
[1757303940633,1.2222,4311.9,4311.8,2.34621703]
[1757303941137,1.2222,4311.9,4311.8,0.027]
[1757303941337,1.2222,4311.9,4311.8,2.34621703]
[1757303944403,1.3374,4311.9,4311.8,2.34621703]
[1757303947039,0.1152,4311.9,4311.8,2.34621703]
[1757303948513,0.001,4312.1,4312.0,2.31910946]
[1757303948747,0.001,4312.1,4312.0,6.97121861]
[1757303949742,1.2232,4312.1,4312.0,6.97121861]
[1757303952638,0.3153,4312.1,4312.0,6.97121861]
[1757303953229,4.1973,4312.1,4312.0,6.97121861]
[1757303953540,3.883,4312.1,4312.0,7.25991861]
[1757303953750,3.883,4312.1,4312.0,8.30820515]
[1757303955335,0.001,4312.1,4312.0,8.30820515]
[1757303958422,0.001,4312.1,4312.0,8.94920515]
[1757303958748,0.001,4312.1,4312.0,9.06440515]
[1757303958917,0.001,4312.1,4312.0,20.2200143]
[1757303959120,0.001,4312.1,4312.0,20.4833143]
[1757303960414,0.001,4312.1,4312.0,16.66934663]
[1757303960853,0.001,4312.1,4312.0,17.36569071]
[1757303964747,0.49937536,4314.7,4312.7,0.002]
[1757303964951,0.025,4314.8,4314.7,5.31765823]
[1757303965252,0.025,4314.8,4314.7,2.31765823]
[1757303965585,0.3222,4314.8,4314.7,2.81305823]
[1757303965790,1.2855,4314.8,4314.7,2.81305823]
[1757303966096,1.2855,4314.8,4314.7,2.31765823]
[1757303967743,1.2855,4314.8,4314.7,2.42558699]
[1757303970590,1.4007,4314.8,4314.7,2.42558699]
[1757303970884,1.54287,4314.8,4314.7,0.10792876]
[1757303971271,1.54287,4314.8,4314.7,2.42558699]
[1757303974386,1.4007,4314.8,4314.7,2.42558699]
[1757303976886,1.4007,4314.8,4314.7,2.42541171]
[1757303979986,0.9318,4314.8,4314.7,2.42541171]
[1757303980485,0.9318,4314.8,4314.7,2.31765823]
[1757303980785,1.4007,4314.8,4314.7,2.42546369]
[1757303983702,0.7911,4314.8,4314.7,2.42546369]
[1757303983868,1.2855,4314.8,4314.7,2.42546369]
[1757303984459,0.8176,4314.8,4314.7,0.10780546]
[1757303984803,1.2865,4314.8,4314.3,0.10793391]
[1757303985092,1.2865,4314.8,4314.5,2.31776551]
[1757303985093,0.13065,4314.7,4314.5,2.31776551]
[1757303985597,1.2605,4314.6,4314.5,2.31776551]
[1757303986582,0.026,4314.8,4314.7,2.31765823]
[1757303986897,0.026,4314.8,4314.7,7.80790886]
[1757303987094,0.026,4314.8,4314.7,8.10480886]
[1757303987295,0.026,4314.8,4314.7,8.21287484]
[1757303988294,0.026,4314.8,4314.7,9.26116138]
[1757303994373,0.026,4314.8,4314.7,7.91597484]
[1757303994773,0.026,4314.8,4314.7,8.03117484]
[1757303995002,0.026,4314.8,4314.7,8.33297484]
[1757303997612,0.026,4314.8,4314.7,8.03117484]
[1757303997808,1.2727,4314.8,4314.7,8.03117484]
[1757303998993,1.2727,4314.8,4314.7,7.80790886]
[1757304000392,1.2727,4314.8,4314.7,2.31765823]
[1757304002386,1.2727,4314.8,4314.3,2.31783481]
[1757304002590,1.053,4314.7,4314.4,2.31781939]
[1757304002789,0.3089,4314.5,4314.4,2.31781939]
[1757304003229,1.2467,4314.5,4314.4,2.31781939]
[1757304003918,0.1152,4314.7,4314.6,2.31771195]
[1757304004114,0.5972,4314.7,4314.6,2.31771195]
[1757304004306,0.1152,4314.7,4314.6,2.61951195]
[1757304004626,0.4241,4314.7,4314.6,2.31771195]
[1757304004822,1.3619,4314.7,4314.6,2.31771195]
[1757304005423,1.25783,4314.7,4314.2,5.49025063]
[1757304005722,0.9378,4314.6,4314.5,2.31771895]
[1757304006132,1.2467,4314.6,4314.5,2.31771895]
[1757304006828,0.026,4314.8,4314.7,2.31765823]
[1757304007593,0.026,4314.8,4314.7,3.64354031]
[1757304007806,0.026,4314.8,4314.7,3.75874031]
[1757304008506,0.026,4314.8,4314.7,3.45694031]
[1757304009731,0.026,4314.8,4314.7,3.75874031]
[1757304010628,0.026,4314.8,4314.7,4.13724031]
[1757304011319,0.026,4314.8,4314.7,8.02424031]
[1757304011631,0.001,4315.6,4315.5,2.31722859]
[1757304011831,0.001,4315.6,4315.5,8.57273319]
[1757304012222,0.001,4315.6,4315.5,2.89588256]
[1757304012727,0.7919,4315.6,4315.5,2.43242859]
[1757304013028,1.2477,4315.6,4315.5,2.31722859]
[1757304013229,0.001,4315.6,4315.5,8.1324515]
[1757304013408,0.001,4315.6,4315.5,8.22447922]
[1757304013611,0.001,4315.6,4315.5,9.18044779]
[1757304015303,0.001,4315.6,4315.5,3.69019716]
[1757304015504,0.001,4315.6,4315.5,3.38839716]
[1757304016944,0.7919,4315.6,4315.5,2.43242859]
[1757304017107,1.2477,4315.6,4315.5,2.43242859]
[1757304018241,1.2477,4315.6,4314.9,5.49025063]
[1757304018242,1.2477,4315.6,4314.7,0.69590795]
[1757304018459,2.7178,4315.5,4314.6,2.31768452]
[1757304018622,0.3089,4314.7,4314.0,0.002]
[1757304018808,0.3089,4314.7,4314.3,2.31786961]
[1757304019009,0.9378,4314.6,4314.3,2.3178565]
[1757304019210,0.3089,4314.4,4314.3,2.3178565]
[1757304019432,1.2467,4314.4,4314.3,2.3178565]
[1757304023348,0.001,4314.5,4314.4,2.31781939]
[1757304023756,0.001,4314.5,4314.4,10.15809758]
[1757304023918,0.001,4314.5,4314.4,10.13491939]
[1757304025531,0.001,4314.5,4314.4,9.87441939]
[1757304025942,0.001,4314.5,4314.4,10.25014813]
[1757304026159,0.001,4314.5,4314.4,15.65741642]
[1757304026636,0.001,4314.5,4314.4,16.03591642]
[1757304026957,0.001,4314.5,4314.4,15.65741642]
[1757304027526,0.001,4314.5,4314.4,16.03591642]
[1757304027841,0.001,4314.5,4314.4,16.51221642]
[1757304028238,0.001,4314.5,4314.4,16.62741642]
[1757304028948,0.001,4314.5,4314.4,16.88691642]
[1757304029337,0.5023,4315.8,4315.5,2.31722859]
[1757304029527,0.026,4315.8,4315.5,7.19418019]
[1757304029727,1.2131,4315.6,4315.5,6.96245733]
[1757304030659,1.2131,4315.6,4315.5,2.31722859]
[1757304033169,0.7695,4315.6,4315.5,2.31722859]
[1757304033368,0.001,4315.6,4315.5,2.31722859]
[1757304033529,0.001,4315.6,4315.5,2.60432859]
[1757304033862,0.001,4315.6,4315.5,3.06811095]
[1757304034169,0.001,4315.6,4315.5,3.09128323]
[1757304034325,0.026,4315.8,4315.7,6.96234994]
[1757304034326,1e-08,4315.8,4315.7,6.96234994]
[1757304034923,0.29220001,4315.8,4315.7,6.96234994]
[1757304035162,0.73580001,4315.8,4315.7,6.96234994]
[1757304035363,0.29220001,4315.8,4315.7,6.96234994]
[1757304035657,0.29220001,4315.8,4315.7,2.3171212]
[1757304035658,0.76850001,4315.8,4315.7,2.3171212]
[1757304035830,1e-08,4315.8,4315.7,2.3171212]
[1757304036628,1.21210001,4315.8,4315.7,2.3171212]
[1757304037853,1e-08,4315.8,4315.7,2.3171212]
[1757304038134,1.813,4316.2,4315.7,2.3171212]
[1757304038135,0.5013,4316.8,4315.8,2.31706751]
[1757304038463,0.5013,4316.8,4316.2,2.31685278]
[1757304038835,0.4436,4316.6,4316.2,2.31685278]
[1757304039036,0.2932,4316.3,4316.2,2.31685278]
[1757304039435,0.2932,4316.3,4316.2,2.43205278]
[1757304039436,1.2131,4316.3,4316.2,2.43205278]
[1757304040340,0.7695,4316.3,4316.2,2.43205278]
[1757304042181,1.2131,4316.3,4316.2,2.31685278]
[1757304046952,0.7695,4316.3,4316.2,2.31685278]
[1757304047791,0.001,4316.3,4316.2,2.31685278]
[1757304048150,1.2131,4316.3,4316.2,2.31685278]
[1757304052798,0.001,4316.3,4316.2,2.60395278]
[1757304052994,0.001,4316.3,4316.2,7.24918152]
[1757304053364,0.001,4316.3,4316.2,8.33251569]
[1757304054266,0.001,4316.3,4316.2,8.71101569]
[1757304057266,0.001,4316.3,4316.2,8.33251569]
[1757304057473,0.001,4316.3,4316.2,11.92741569]
[1757304057859,0.001,4316.3,4316.2,12.21331569]
[1757304059986,0.001,4316.3,4316.2,12.21231569]
[1757304060189,0.001,4316.3,4316.2,11.92641569]
[1757304060497,1.2073,4316.3,4316.2,10.95828152]
[1757304061462,0.001,4316.3,4316.2,10.95828152]
[1757304062404,0.001,4316.3,4316.2,7.07728152]
[1757304063292,0.2867,4316.3,4316.2,7.07728152]
[1757304063609,0.001,4316.3,4316.2,7.07728152]
[1757304063816,1.2073,4316.3,4316.2,2.43205278]
[1757304064114,1.2073,4316.3,4316.2,7.07728152]
[1757304064879,1.2073,4316.3,4316.2,2.43205278]
[1757304065101,1.2073,4316.3,4316.2,2.31685278]
[1757304067473,1.33955,4316.3,4316.2,2.31685278]
[1757304071200,1.2073,4316.3,4316.2,2.31685278]
[1757304075104,1.2073,4316.3,4315.4,10.84346132]
[1757304075301,1.0358,4316.2,4316.1,2.31690646]
[1757304075830,1.3215,4316.2,4316.1,2.31690646]
[1757304076437,1.3215,4316.2,4316.1,2.31890646]
[1757304076935,1.3215,4316.2,4316.1,0.002]
[1757304078934,1.84185,4316.2,4316.1,0.002]
[1757304079135,4.15870278,4316.2,4316.1,0.002]
[1757304080118,12.81277106,4316.2,4316.1,0.002]
[1757304080327,13.44250095,4316.2,4316.1,0.002]
[1757304082348,14.28426044,4316.2,4316.1,0.002]
[1757304084046,8.79727221,4316.2,4316.1,0.002]
[1757304084249,7.89007221,4316.2,4316.1,0.002]
[1757304084414,11.14134232,4316.2,4316.1,0.002]
[1757304084619,8.82448954,4316.2,4316.1,0.002]
[1757304084818,11.14134232,4316.2,4316.1,0.002]
[1757304085246,9.03555451,4316.2,4316.1,0.002]
[1757304085824,11.35240729,4316.2,4316.1,0.002]
[1757304086150,9.03555451,4316.2,4316.1,0.002]
[1757304086720,11.35240729,4316.2,4316.1,0.002]
[1757304087122,12.14440729,4316.2,4316.1,0.002]
[1757304092860,12.77293354,4316.2,4316.1,0.002]
[1757304093952,12.77393354,4316.2,4316.1,0.002]
[1757304094952,13.13839584,4316.2,4316.1,0.002]
[1757304095160,12.77393354,4316.2,4316.1,0.002]
[1757304095676,12.31033354,4316.2,4316.1,0.002]
[1757304095873,12.78163354,4316.2,4316.1,0.002]
[1757304096078,12.31033354,4316.2,4316.1,0.002]
[1757304096243,11.56763354,4316.2,4316.1,0.002]
[1757304096443,7.93943076,4316.2,4316.1,0.299]
[1757304096774,7.31090451,4316.2,4316.1,0.299]
[1757304097273,4.31090451,4316.2,4316.1,0.299]
[1757304097444,4.09406497,4316.2,4316.1,0.299]
[1757304097645,4.09406497,4316.2,4316.1,0.6775]
[1757304097858,4.09406497,4316.2,4316.1,2.99440646]
[1757304100079,4.09306497,4316.2,4316.1,2.61590646]
[1757304100371,4.09306497,4316.2,4316.1,0.299]
[1757304100778,4.09306497,4316.2,4316.1,2.61590646]
[1757304101353,4.20826497,4316.2,4316.1,2.99440646]
[1757304101760,4.20826497,4316.2,4316.1,0.299]
[1757304103050,5.49226497,4316.2,4316.1,0.002]
[1757304103254,6.61919147,4316.2,4316.1,0.002]
[1757304104657,6.14789147,4316.2,4316.1,0.002]
[1757304105054,6.61919147,4316.2,4316.1,0.002]
[1757304108080,9.94482516,4316.2,4316.1,0.002]
[1757304108891,7.62797238,4316.2,4316.1,0.002]
[1757304109097,14.68797238,4316.2,4316.1,0.002]
[1757304109473,17.00482516,4316.2,4316.1,0.002]
[1757304109673,14.68797238,4316.2,4316.1,0.002]
[1757304110274,17.00482516,4316.2,4316.1,0.002]
[1757304110592,14.68797238,4316.2,4316.1,0.002]